Workbook

Sheet Introduction
A1: Introduction to the Nordic Zone Birds & Mammals calculator tool
A3: This calculator tool has been developed as a supplement to the document "Pesticide risk assessment for birds and mammals".
A4: The aim of the document is to present standard scenarios for higher tier risk assessment in the Nordic Zone.
A5: The scenarios shall be used whenever the standard tier 1 scenarios (EFSA calculator tool) do not indicate safe use.
A7: All values for RUD, energy and moisture content, assimilation efficiency etc. used in the calculations are from Appendices F and G to the EFSA Guidance Document (EFSA Journal 2009: 7(12):1438).
A8: NB! Please notice that the spreadsheets "species" and "diets" are used as reference data sheets in the calculations and that NO CHANGES should be made to these sheets.
A10: Please follow the steps below when using the calculator tool. Further guidance is provided as comments (tip texts) to selected fields in the spreadsheets.
A12: Risk assessment for sprayed compounds:
A14: Step 0 | B14: Risk assessment for sprayed compounds is performed using the "Birds" and "Mammals" spreadsheets.
A16: Step 1 | B16: Please enter basic data on substance, use, toxicity etc.
A18: Step 2 | B18: Select a focal species that is appropriate for the crop, application scenario and growth stage in question, based upon the summary tables in chapter 6 and the relevant species accounts in chapter 5 of the document.
B19: When a species is selected in the spreadsheet, a species-specific body weight is shown and a corresponding Daily Energy Expenditure is calculated, based upon an allometric relationship
B20: between body weight and DEE. The standard values may be replaced by case-specific data if considered appropriate and duly justified.
A22: Step 3 | B22: Select a diet that is appropriate for the species, crop and time period in question. Please refer to the species accounts (paragraph "risk assessment") in chapter 5 of the document for further guidance on this subject.
B23: The proportion of diet made up by each food type shall be entered into the "PD" column. Please remember indicating (by selection) whether the entered diet is measured as fresh weight or dry weight
B24: (notice that volume % is considered equivalent to fresh weight %).
A26: Step 4 | B26: Enter the length of the TWA period (default is 21 days; longer periods are not accepted). MAF x twa is calculated using a moving time window.
B27: Replace the default deposition factor, dehusking factor, PT, DT50 and RUD values by case-specific values, if considered appropriate. See tip texts and chapter 4 of the document for further guidance.
B28: If different PT values are to be used for acute and reproductive risk assessment, the table must be copied (Step 5).
A30: Step 5 | B30: Copying the table allows you to make similar calculations for other diets, e.g. for other months. This is required whenever the product may be applied during an extended time period.
B31: Please notice that the calculations must cover the whole period and all growth stages where applications may be performed.
A33: Step 6 | B33: Copying the whole spreadsheet allows you to repeat the calculations for another species or another use of the product.
A35: Step 7 | B35: The "Create print table" facility opens a dialogue which allows you to summarize the results in a format suitable for printing or copying into a report.
B36: Please tick the columns you want to include in a summary table. The table opens in a new spreadsheet immediately before the current sheet.
A38: Risk assessment for seed treatments:
A40: Step 0 | B40: Risk assessment for seed treatment compounds is performed using the "Seed Treatment" spreadsheet.
A42: Step 1 | B42: Please enter basic data on substance, use and toxicity.
A44: Step 2 | B44: Select a relevant granivorous focal species from the summary tables in chapter 6 and the species accounts in chapter 5 of the document (please notice that wood mouse is the only relevant mammal species to consider).
B45: When a species is selected in the spreadsheet, a species-specific body weight is shown. Please notice that the calculation of daily intake (next step) refers to a specific body weight;
B46: therefore the default body weight should NOT be changed without adjusting the daily intake accordingly.
A48: Step 3 | B48: Enter the daily intake of treated seed for the species in question, based upon the species-specific information (paragraphs "risk assessment") in chapter 5 of the document.
A50: Step 4 | B50: If deemed appropriate (and duly justified) the default dehusking factor and PT value (1) may be replaced by case-specific values.
A52: Step 5 | B52: Enter a compound-specific DT50 value (if available) for estimation of a TWA factor. The length of the TWA period (default 21 days) may be shortened if considered appropriate.
A54: Step 6 | B54: Copying the whole "Seed Treatment" spreadsheet allows you to repeat the calculations for another species or another use of the product.
A56: Risk assessment for seed treatments (systemic compounds) distributed to green parts of plant:
A58: Step 0 | B58: Risk assessment is performed in the same way as for sprayed compounds (i.e., using the "Birds" and "Mammals" spreadsheets) with the following modifications:
A60: Step 1 | B60: Application rate shall be set to zero and the number of applications to 1.
A62: Step 4 | B62: Depending on the intended use of the product, exposure may occur as "cereal shoots" or "leafy crops". The estimated concentration of a.s. (mg/kg) in the food type in question
B63: (estimated as seed treatment rate / 5 or as measured concentrations) shall be entered directly into the corresponding "C acute" field (to the right of the main table).
B64: "C repro" shall be calculated as C acute x MAFtwa.
B65: Deposition factor and MAF acute shall be set to 1. Default values for PT (1), DT50 (10 days) and length of TWA period (21 days) may be replaced if considered appropriate.

Sheet Birds
A1: Birds | B1: Standard higher tier risk assessment for birds
B3: Responsible | C3: NN | D3: Date | E3: dd-mm-yyyy | G3: RED fields in bold shall always be filled in manually
G4: Other RED fields are also to be filled in manually but may be left at their default values
B5: Active substance | C5: substance | G5: GREEN fields are filled in automatically but may be replaced
B6: Plant protection product | C6: product | G6: BLUE fields are filled in automatically and should NOT be replaced
B7: Use | C7: crop (group)
B8: Application rate | C8: 0.1 | D8: kg a.s./ha | G8: MAF acute - to be used in connection with 90th percentiles for RUD
B9: No. of applications | C9: 1 | F9: Interval | G9: No. of applications
B10: Interval between applications | C10: 1 | D10: days | F10: (d) | G10: 1 | H10: 2 | I10: 3 | J10: 4 | K10: 5 | L10: 6 | M10: 7 | N10: 8 | O10: > 8
F11: 7 | G11: 1 | H11: 1.4 | I11: 1.6 | J11: 1.8 | K11: 1.9 | L11: 1.9 | M11: 1.9 | N11: 1.9 | O11: 2
B12: Endpoints birds: | F12: 10 | G12: 1 | H12: 1.3 | I12: 1.5 | J12: 1.5 | K12: 1.6 | L12: 1.6 | M12: 1.6 | N12: 1.6 | O12: 1.6
B13: LD50 acute | C13: 340 | D13: mg/kg bw | F13: 14 | G13: 1 | H13: 1.2 | I13: 1.3 | J13: 1.3 | K13: 1.4 | L13: 1.4 | M13: 1.4 | N13: 1.4 | O13: 1.4
B14: NOAEL reproductive | C14: 75.7 | D14: mg/kg bw/d
O15: Please copy the table for further months or periods
B17: Species (please select): | D17: 5 | E17: Body weight | F17: =OFFSET(species!$D$2,D17,0) -> 35 | G17: g | H17: DEE (kJ) | I17: =CalcDEE(D17,F17) -> 119.0666125
B19: Diet compos. measured as | D19: 2 | H19: Length of TWA period | I19: 21 | J19: days
A21: 0 | B21: Month or period:
B22: May
A24: 1 | B24: Diet composition: | D24: PD | E24: FIR | F24: Dehusk. | G24: Depos. | H24: PT | I24: DT50 | J24: MAF | K24: MAFtwa | L24: RUD | M24: RUD | N24: DDD | O24: DDD | Q24: FE assimilated | R24: C acute | S24: C repro
A25: 2 | D25: ww or dw | E25: g ww | F25: factor | G25: factor | I25: days | J25: acute | L25: 90 perc. | M25: mean | N25: acute | O25: repro | Q25: kJ/g diet mix
A26: 3 | B26: Grasses and cereal shoots | E26: =CalcFIR($D$19,$I$17,Q38,ROW(D26)) -> 0 | F26: -- | G26: 1 | H26: 1 | I26: 10 | J26: 1 | K26: =calctwa($C$9, $I$19,$I26,$C$10,1) -> 0.5267497731 | L26: 102.3 | M26: 54.2 | N26: =$E26/$F$17*R26*$H26 -> 0 | O26: =$E26/$F$17*S26*$H26 -> 0 | Q26: =CalcFE($D$17,D$19,ROW(D26)) -> 0 | R26: =calcc($C$8,ROW(F26:M26),TRUE) -> 10.23 | S26: =calcc($C$8,ROW(F26:M26),FALSE) -> 2.85498377
A27: 4 | B27: Non-grass herbs, leafy crops | E27: =CalcFIR($D$19,$I$17,Q38,ROW(D27)) -> 0 | F27: -- | G27: 1 | H27: =H26 -> 1 | I27: 10 | J27: =J$26 -> 1 | K27: =calctwa($C$9, $I$19,$I27,$C$10,1) -> 0.5267497731 | L27: 70.3 | M27: 28.7 | N27: 0 | O27: 0 | Q27: 0 | R27: =calcc($C$8,ROW(F27:M27),TRUE) -> 7.03 | S27: 1.511771849
A28: 5 | B28: Cereal grain/ear on plant | E28: =CalcFIR($D$19,$I$17,Q38,ROW(D28)) -> 0 | F28: 1 | G28: 1 | H28: =H26 -> 1 | I28: 10 | J28: =J$26 -> 1 | K28: =calctwa($C$9, $I$19,$I28,$C$10,1) -> 0.5267497731 | L28: 13 | M28: 8 | N28: 0 | O28: 0 | Q28: 0 | R28: 1.3 | S28: 0.4213998184
A29: 6 | B29: Large seeds/cereal grain on ground | D29: 0.06 | E29: =CalcFIR($D$19,$I$17,Q38,ROW(D29)) -> 0.4884763956 | F29: 1 | G29: 1 | H29: =H26 -> 1 | I29: 10 | J29: =J$26 -> 1 | K29: 0.5267497731 | L29: 87 | M29: 40.2 | N29: =$E29/$F$17*R29*$H29 -> 0.1214212755 | O29: =$E29/$F$17*S29*$H29 -> 0.02955329768 | Q29: 0.8832 | R29: 8.7 | S29: 2.117534088
A30: 7 | B30: Small seeds (weed seeds) | D30: 0.42 | E30: =CalcFIR($D$19,$I$17,Q38,ROW(D30)) -> 3.237172651 | F30: 1 | G30: 1 | H30: =H26 -> 1 | I30: 10 | J30: 1 | K30: 0.5267497731 | L30: 87 | M30: 40.2 | N30: 0.8046686303 | O30: 0.1958520982 | Q30: 7.2912 | R30: 8.7 | S30: 2.117534088
A31: 8 | B31: Large fruit (pome) | E31: =CalcFIR($D$19,$I$17,Q38,ROW(D31)) -> 0 | F31: -- | G31: 1 | H31: =H26 -> 1 | I31: 10 | J31: 1 | K31: 0.5267497731 | L31: 41.1 | M31: 19.5 | N31: 0 | O31: 0 | Q31: 0 | R31: 4.11 | S31: 1.027162057
A32: 9 | B32: Small fruit (plum, cherry) | E32: =CalcFIR($D$19,$I$17,Q38,ROW(D32)) -> 0 | F32: -- | G32: 1 | H32: =H26 -> 1 | I32: 10 | J32: 1 | K32: 0.5267497731 | L32: 6.5 | M32: 3.3 | N32: 0 | O32: 0 | Q32: 0 | R32: 0.65 | S32: 0.1738274251
A33: 10 | B33: Berries | E33: =CalcFIR($D$19,$I$17,Q38,ROW(D33)) -> 0 | F33: -- | G33: 1 | H33: =H26 -> 1 | I33: 10 | J33: 1 | K33: 0.5267497731 | L33: 16.7 | M33: 8.3 | N33: 0 | O33: 0 | Q33: 0 | R33: 1.67 | S33: 0.4372023116
A34: 11 | B34: Foliar arthropods | E34: =CalcFIR($D$19,$I$17,Q38,ROW(D34)) -> 0 | F34: -- | G34: 1 | H34: =H26 -> 1 | I34: 10 | J34: 1 | K34: 0.5267497731 | L34: 54.1 | M34: 21 | N34: 0 | O34: 0 | Q34: 0 | R34: 5.41 | S34: 1.106174523
A35: 12 | B35: Ground-dwelling arthropods | D35: 0.52 | E35: =CalcFIR($D$19,$I$17,Q38,ROW(D35)) -> 11.57417682 | F35: -- | G35: 1 | H35: =H26 -> 1 | I35: 10 | J35: 1 | K35: 0.5267497731 | L35: 13.8 | M35: 7.5 | N35: 0.4563532574 | O35: 0.1306434646 | Q35: 8.97104 | R35: 1.38 | S35: 0.3950623298
A36: 13 | B36: Ground-dwelling arthropods with intercept. | E36: =CalcFIR($D$19,$I$17,Q38,ROW(D36)) -> 0 | F36: -- | G36: 1 | H36: =H26 -> 1 | I36: 10 | J36: 1 | K36: 0.5267497731 | L36: 9.7 | M36: 3.5 | N36: 0 | O36: 0 | Q36: 0 | R36: 0.97 | S36: 0.1843624206
A37: 14 | B37: Soil invertebrates | E37: =CalcFIR($D$19,$I$17,Q38,ROW(D37)) -> 0 | F37: -- | G37: 1 | H37: =H26 -> 1 | I37: 10 | J37: =J26 -> 1 | K37: =calctwa($C$9, $I$19,$I37,$C$10,1) -> 0.5267497731 | L37: 0 | M37: 0 | N37: 0 | O37: 0 | Q37: 0 | R37: 0 | S37: 0
B38: Total | D38: =SUM(D26:D37) -> 1 | E38: =SUM(E26:E37) -> 15.29982586 | N38: =SUM(N26:N37) -> 1.382443163 | O38: =SUM(O26:O37) -> 0.3560488604 | Q38: =SUM(Q26:Q37) -> 17.14544
D39: check = 1,00
M40: TER | N40: =$C$13/ N38 -> 245.9413949 | O40: =$C$14/ O38 -> 212.6112689
M41: Trigger | N41: 10 | O41: 5

Sheet Mammals
A1: Mammals | B1: Standard higher tier risk assessment for mammals
B3: Responsible | C3: NN | D3: Date | E3: dd-mm-yyyy | G3: RED fields in bold shall always be filled in manually
G4: Other RED fields are also to be filled in manually but may be left at their default values
B5: Active substance | C5: substance | G5: GREEN fields are filled in automatically but may be replaced
B6: Plant protection product | C6: product | G6: BLUE fields are filled in automatically and should NOT be replaced
B7: Use | C7: crop (group)
B8: Application rate | C8: 0.1 | D8: kg a.s./ha | G8: MAF acute - to be used in connection with 90th percentiles for RUD
B9: No. of applications | C9: 1 | F9: Interval | G9: No. of applications
B10: Interval between applications | C10: 1 | D10: days | F10: (d) | G10: 1 | H10: 2 | I10: 3 | J10: 4 | K10: 5 | L10: 6 | M10: 7 | N10: 8 | O10: > 8
F11: 7 | G11: 1 | H11: 1.4 | I11: 1.6 | J11: 1.8 | K11: 1.9 | L11: 1.9 | M11: 1.9 | N11: 1.9 | O11: 2
B12: Endpoints mammals: | F12: 10 | G12: 1 | H12: 1.3 | I12: 1.5 | J12: 1.5 | K12: 1.6 | L12: 1.6 | M12: 1.6 | N12: 1.6 | O12: 1.6
B13: LD50 acute | C13: 179 | D13: mg/kg bw | F13: 14 | G13: 1 | H13: 1.2 | I13: 1.3 | J13: 1.3 | K13: 1.4 | L13: 1.4 | M13: 1.4 | N13: 1.4 | O13: 1.4
B14: NOAEL reproductive | C14: 3.8 | D14: mg/kg bw/d
O15: Please copy the table for further months or periods
B17: Species (please select): | C17: 4 | D17: =C17+16 -> 20 | E17: Body weight | F17: =OFFSET(species!$D$2,D17,0) -> 18 | G17: g | H17: DEE (kJ) | I17: =CalcDEE(D17,F17) -> 51.46593192
B19: Diet compos. measured as | D19: 1 | H19: Length of TWA period | I19: 21 | J19: days
A21: 0 | B21: Month or period:
B22: May
A24: 1 | B24: Diet composition: | D24: PD | E24: FIR | F24: Dehusk. | G24: Depos. | H24: PT | I24: DT50 | J24: MAF | K24: MAFtwa | L24: RUD | M24: RUD | N24: DDD | O24: DDD | Q24: FE assimilated | R24: C acute | S24: C repro
A25: 2 | D25: ww or dw | E25: g ww | F25: factor | G25: factor | I25: days | J25: acute | L25: 90 perc. | M25: mean | N25: acute | O25: repro | Q25: kJ/g diet mix
A26: 3 | B26: Grasses and cereal shoots | D26: 0.16 | E26: =CalcFIR($D$19,$I$17,Q38,ROW(D26)) -> 1.247548294 | F26: -- | G26: 1 | H26: 1 | I26: 10 | J26: 1 | K26: =calctwa($C$9, $I$19,$I26,$C$10,1) -> 0.5267497731 | L26: 102.3 | M26: 54.2 | N26: =$E26/$F$17*R26*$H26 -> 0.7090232806 | O26: =$E26/$F$17*S26*$H26 -> 0.1978738962 | Q26: =CalcFE($D$17,D$19,ROW(D26)) -> 0.31235072 | R26: =calcc($C$8,ROW(F26:M26),TRUE) -> 10.23 | S26: =calcc($C$8,ROW(F26:M26),FALSE) -> 2.85498377
A27: 4 | B27: Non-grass herbs, leafy crops | E27: =CalcFIR($D$19,$I$17,Q38,ROW(D27)) -> 0 | F27: -- | G27: 1 | H27: =H26 -> 1 | I27: 10 | J27: =J26 -> 1 | K27: =calctwa($C$9, $I$19,$I27,$C$10,1) -> 0.5267497731 | L27: 70.3 | M27: 28.7 | N27: =$E27/$F$17*R27*$H27 -> 0 | O27: =$E27/$F$17*S27*$H27 -> 0 | Q27: =CalcFE($D$17,D$19,ROW(D27)) -> 0 | R27: =calcc($C$8,ROW(F27:M27),TRUE) -> 7.03 | S27: =calcc($C$8,ROW(F27:M27),FALSE) -> 1.511771849
A28: 5 | B28: Cereal grain/ear on plant | E28: =CalcFIR($D$19,$I$17,Q38,ROW(D28)) -> 0 | F28: 1 | G28: 1 | H28: =H26 -> 1 | I28: 10 | J28: =J26 -> 1 | K28: =calctwa($C$9, $I$19,$I28,$C$10,1) -> 0.5267497731 | L28: 13 | M28: 8 | N28: =$E28/$F$17*R28*$H28 -> 0 | O28: =$E28/$F$17*S28*$H28 -> 0 | Q28: 0 | R28: =calcc($C$8,ROW(F28:M28),TRUE) -> 1.3 | S28: =calcc($C$8,ROW(F28:M28),FALSE) -> 0.4213998184
A29: 6 | B29: Large seeds/cereal grain on ground | D29: 0.3 | E29: =CalcFIR($D$19,$I$17,Q38,ROW(D29)) -> 2.339153052 | F29: 1 | G29: 1 | H29: =H26 -> 1 | I29: 10 | J29: =J26 -> 1 | K29: 0.5267497731 | L29: 87 | M29: 40.2 | N29: =$E29/$F$17*R29*$H29 -> 1.130590642 | O29: =$E29/$F$17*S29*$H29 -> 0.2751797957 | Q29: =CalcFE($D$17,D$19,ROW(D29)) -> 3.9551904 | R29: =calcc($C$8,ROW(F29:M29),TRUE) -> 8.7 | S29: =calcc($C$8,ROW(F29:M29),FALSE) -> 2.117534088
A30: 7 | B30: Small seeds (weed seeds) | D30: 0.04 | E30: =CalcFIR($D$19,$I$17,Q38,ROW(D30)) -> 0.3118870736 | F30: 1 | G30: 1 | H30: =H26 -> 1 | I30: 10 | J30: =J26 -> 1 | K30: 0.5267497731 | L30: 87 | M30: 40.2 | N30: =$E30/$F$17*R30*$H30 -> 0.1507454189 | O30: 0.03669063943 | Q30: 0.65693712 | R30: =calcc($C$8,ROW(F30:M30),TRUE) -> 8.7 | S30: =calcc($C$8,ROW(F30:M30),FALSE) -> 2.117534088
A31: 8 | B31: Large fruit (pome) | E31: =CalcFIR($D$19,$I$17,Q38,ROW(D31)) -> 0 | F31: -- | G31: 1 | H31: =H26 -> 1 | I31: 10 | J31: =J26 -> 1 | K31: 0.5267497731 | L31: 41.1 | M31: 19.5 | N31: 0 | O31: 0 | Q31: 0 | R31: 4.11 | S31: 1.027162057
A32: 9 | B32: Small fruit (plum, cherry) | E32: =CalcFIR($D$19,$I$17,Q38,ROW(D32)) -> 0 | F32: -- | G32: 1 | H32: =H26 -> 1 | I32: 10 | J32: =J26 -> 1 | K32: 0.5267497731 | L32: 6.5 | M32: 3.3 | N32: 0 | O32: =$E32/$F$17*S32*$H32 -> 0 | Q32: 0 | R32: 0.65 | S32: 0.1738274251
A33: 10 | B33: Berries | E33: =CalcFIR($D$19,$I$17,Q38,ROW(D33)) -> 0 | F33: -- | G33: 1 | H33: =H26 -> 1 | I33: 10 | J33: =J26 -> 1 | K33: 0.5267497731 | L33: 16.7 | M33: 8.3 | N33: 0 | O33: 0 | Q33: 0 | R33: 1.67 | S33: 0.4372023116
A34: 11 | B34: Foliar arthropods | E34: =CalcFIR($D$19,$I$17,Q38,ROW(D34)) -> 0 | F34: -- | G34: 1 | H34: =H26 -> 1 | I34: 10 | J34: 1 | K34: =calctwa($C$9, $I$19,$I34,$C$10,1) -> 0.5267497731 | L34: 54.1 | M34: 21 | N34: 0 | O34: 0 | Q34: 0 | R34: 5.41 | S34: 1.106174523
A35: 12 | B35: Ground-dwelling arthropods | D35: 0.1 | E35: =CalcFIR($D$19,$I$17,Q38,ROW(D35)) -> 0.7797176839 | F35: -- | G35: 1 | H35: =H26 -> 1 | I35: 10 | J35: 1 | K35: 0.5267497731 | L35: 13.8 | M35: 7.5 | N35: 0.05977835577 | O35: 0.01711317138 | Q35: 0.6161688 | R35: 1.38 | S35: 0.3950623298
A36: 13 | B36: Ground-dwelling arthropods with intercept. | E36: =CalcFIR($D$19,$I$17,Q38,ROW(D36)) -> 0 | F36: -- | G36: 1 | H36: =H26 -> 1 | I36: 10 | J36: 1 | K36: =calctwa($C$9, $I$19,$I36,$C$10,1) -> 0.5267497731 | L36: 9.7 | M36: 3.5 | N36: 0 | O36: 0 | Q36: 0 | R36: 0.97 | S36: 0.1843624206
A37: 14 | B37: Soil invertebrates | D37: 0.4 | E37: =CalcFIR($D$19,$I$17,Q38,ROW(D37)) -> 3.118870736 | F37: -- | G37: 1 | H37: =H26 -> 1 | I37: 10 | J37: =J26 -> 1 | K37: =calctwa($C$9, $I$19,$I37,$C$10,1) -> 0.5267497731 | L37: 0 | M37: 0 | N37: 0 | O37: 0 | Q37: 1.0599384 | R37: =calcc($C$8,ROW(F37:M37),TRUE) -> 0 | S37: =calcc($C$8,ROW(F37:M37),FALSE) -> 0
B38: Total | D38: =SUM(D26:D37) -> 1 | E38: =SUM(E26:E37) -> 7.797176839 | N38: =SUM(N26:N37) -> 2.050137697 | O38: =SUM(O26:O37) -> 0.5268575028 | Q38: =SUM(Q26:Q37) -> 6.60058544
D39: check = 1,00
M40: TER | N40: =$C$13/ N38 -> 87.31120855 | O40: =$C$14/ O38 -> 7.212576418
M41: Trigger | N41: 10 | O41: 5

Sheet Seed Treatment
A1: Standard higher tier risk assessment for seed treatments
A3: Responsible | B3: NN | C3: Date | D3: dd-mm-yyyy | G3: RED fields in bold shall always be filled in manually
G4: Other RED fields are also to be filled in manually but may be left at their default values
A5: Active substance | B5: substance | G5: GREEN fields are filled in automatically but may be replaced
A6: Plant protection product | B6: product | G6: BLUE fields are filled in automatically and should NOT be replaced
A7: Use | B7: crop (group)
A8: Seed tmt. (mg a.s./kg seed) | B8: 10
A11: Endpoints birds:
A12: LD50 acute | B12: 340 | C12: mg/kg bw
A13: NOAEL reproductive | B13: 75.7 | C13: mg/kg bw/d
A15: Species (please select): | B15: 4 | C15: 2 | D15: Body weight (g) | E15: =OFFSET(species!$D$2,C15,0) -> 2450 | H15: Length of TWA period | I15: 21 | J15: days
B17: Daily intake | C17: Dehusk. | D17: PT | E17: DT50 | F17: Ftwa | G17: DDD | H17: DDD | I17: TER | J17: TER
B18: (g) | C18: factor | E18: days | G18: acute | H18: repro | I18: acute | J18: repro
A20: Granivorous bird | B20: 225 | C20: 1 | D20: 1 | E20: 9999 | F20: =(1-EXP(-((LN(2)/E20)*$I$15)))/((LN(2)/E20)*$I$15) -> 0.9992724757 | G20: =C20*D20*(B20*$B$8/$E$15) -> 0.9183673469 | H20: =G20*F20 -> 0.9176992124 | I20: =B12/G20 -> 370.2222222 | J20: =B13/H20 -> 82.48890157
A24: Endpoints mammals:
A25: LD50 acute | B25: 179 | C25: mg/kg bw
A26: NOAEL reproductive | B26: 3.8 | C26: mg/kg bw/d
A28: Species | B28: Wood mouse | D28: Body weight (g) | E28: 18 | H28: Length of TWA period | I28: 21 | J28: days
B30: Daily intake | C30: Dehusk. | D30: PT | E30: DT50 | F30: Ftwa | G30: DDD | H30: DDD | I30: TER | J30: TER
B31: (g) | C31: factor | E31: days | G31: acute | H31: repro | I31: acute | J31: repro
A33: Granivorous mammal | B33: 3.9 | C33: 1 | D33: 1 | E33: 9999 | F33: =(1-EXP(-((LN(2)/E33)*$I$28)))/((LN(2)/E33)*$I$28) -> 0.9992724757 | G33: =C33*D33*(B33*$B$8/$E$28) -> 2.166666667 | H33: =G33*F33 -> 2.165090364 | I33: =B25/G33 -> 82.61538462 | J33: =B26/H33 -> 1.755123048

Sheet species
A1: AE_gruppe | B1: English name | C1: Dansk navn | D1: BW (g) | E1: log a | F1: b
A3: 3 | B3: Bean goose | C3: Sædgås | D3: 2845 | E3: 0.839 | F3: 0.669
A4: 3 | B4: Pink-footed goose | C4: Kortnæbbet gås | D4: 2450 | E4: 0.839 | F4: 0.669
A5: 5 | B5: Grey partridge | C5: Agerhøne | D5: 380 | E5: 0.839 | F5: 0.669
A6: 4 | B6: Woodpigeon | C6: Ringdue | D6: 435 | E6: 0.839 | F6: 0.669
A7: 2 | B7: Skylark | C7: Sanglærke | D7: 35 | E7: 1.032 | F7: 0.676
A8: 2 | B8: Yellow wagtail | C8: Gul vipstjert | D8: 17.5 | E8: 1.032 | F8: 0.676
A9: 2 | B9: White wagtail | C9: Hvid vipstjert | D9: 21 | E9: 1.032 | F9: 0.676
A10: 2 | B10: Robin | C10: Rødhals | D10: 16.5 | E10: 1.032 | F10: 0.676
A11: 2 | B11: Whinchat | C11: Bynkefugl | D11: 16.5 | E11: 1.032 | F11: 0.676
A12: 2 | B12: Whitethroat | C12: Tornsanger | D12: 15.5 | E12: 1.032 | F12: 0.676
A13: 2 | B13: Willow warbler | C13: Løvsanger | D13: 9.5 | E13: 1.032 | F13: 0.676
A14: 2 | B14: Blue tit | C14: Blåmejse | D14: 11 | E14: 1.032 | F14: 0.676
A15: 2 | B15: Starling | C15: Stær | D15: 75 | E15: 1.032 | F15: 0.676
A16: 2 | B16: Chaffinch | C16: Bogfinke | D16: 21 | E16: 1.032 | F16: 0.676
A17: 2 | B17: Linnet | C17: Tornirisk | D17: 18 | E17: 1.032 | F17: 0.676
A18: 2 | B18: Yellowhammer | C18: Gulspurv | D18: 29 | E18: 1.032 | F18: 0.676
A19: 1 | B19: Common shrew | C19: Almindelig spidsmus | D19: 8.1 | E19: 0.814 | F19: 0.715
A20: 1 | B20: Brown hare | C20: Hare | D20: 3800 | E20: 0.814 | F20: 0.715
A21: 1 | B21: Field vole | C21: Almindelig markmus | D21: 30 | E21: 0.814 | F21: 0.715
A22: 1 | B22: Wood mouse | C22: Skovmus | D22: 18 | E22: 0.814 | F22: 0.715
A26: Please do not make any changes to this sheet

Sheet diets
A1: English name | B1: Dansk navn | C1: Mammal | D1: Passerine | E1: Duck & Geese | F1: Pigeon | G1: Fowl | H1: FE | I1: MC%
B2: index | C2: 1 | D2: 2 | E2: 3 | F2: 4 | G2: 5
A3: Grasses and cereal shoots | B3: Græs og korn | C3: 0.47 | D3: 0.76 | E3: 0.41 | F3: 0.53 | G3: 0.42 | H3: 17.6 | I3: 76.4
A4: Non-grass herbs, leafy crops | B4: Bredbladet ukrudt og afgrøde | C4: 0.76 | D4: 0.76 | E4: 0.41 | F4: 0.53 | G4: 0.42 | H4: 17.8 | I4: 88.1
A5: Cereal grain/ear on plant | B5: Korn/aks på planten | C5: 0.84 | D5: 0.8 | E5: 0.83 | F5: 0.76 | G5: 0.65 | H5: 18.4 | I5: 14.7
A6: Large seeds/cereal grain on ground | B6: Store frø (korn) på jorden | C6: 0.84 | D6: 0.8 | E6: 0.83 | F6: 0.76 | G6: 0.65 | H6: 18.4 | I6: 14.7
A7: Small seeds (weed seeds) | B7: Små frø | C7: 0.84 | D7: 0.8 | E7: 0.83 | F7: 0.76 | G7: 0.65 | H7: 21.7 | I7: 9.9
A8: Large fruit (pome) | B8: Store frugter (æble, pære) | C8: 0.74 | D8: 0.67 | E8: 0.62 | F8: 0.62 | G8: 0.57 | H8: 14.8 | I8: 83.9
A9: Small fruit (plum, cherry) | B9: Små frugter (blommer, kirsebær) | C9: 0.74 | D9: 0.67 | E9: 0.62 | F9: 0.62 | G9: 0.57 | H9: 14.8 | I9: 83.9
A10: Berries | B10: Bær | C10: 0.74 | D10: 0.67 | E10: 0.62 | F10: 0.62 | G10: 0.57 | H10: 14.8 | I10: 83.9
A11: Foliar arthropods | B11: Bladlevende arthropoder | C11: 0.87 | D11: 0.76 | E11: 0.87 | F11: 0.77 | G11: 0.7 | H11: 22.7 | I11: 68.8
A12: Ground-dwelling arthropods | B12: Jordoverflade-levende arthropoder | C12: 0.87 | D12: 0.76 | E12: 0.87 | F12: 0.77 | G12: 0.7 | H12: 22.7 | I12: 68.8
A13: Ground-dwelling arthropods with interception | B13: Do., interception indregnet i RUD | C13: 0.87 | D13: 0.76 | E13: 0.87 | F13: 0.77 | G13: 0.7 | H13: 22.7 | I13: 68.8
A14: Soil invertebrates | B14: Regnorme | C14: 0.87 | D14: 0.76 | E14: 0.87 | F14: 0.77 | G14: 0.7 | H14: 19.4 | I14: 84.3
A18: Fresh (wet) weight | B18: Vådvægt
A19: Dry weight | B19: Tørvægt
A22: Standard (21 days)
A23: Application interval
A26: Please do not make any changes to this sheet
